{"text_format":"3","workbook":"xlsx","n_sheets":5,"sheets":["Dashboard","Spese e incassi","Report preventivo","Elenchi dati","Tabella pivot Categoria"],"not_rendered":{"charts":3,"defined_names":18,"pivot_tables":2},"read":"whole","date_system":"1900"}

{"sheet":"Dashboard","index":0,"n_rows":21,"n_cols":16,"rows_kept":21,"merged":[[5,2,5,3],[8,9,8,10],[9,9,9,10],[10,9,10,10]]}
[]
[null,null,"Budget domestico quindicinale",{"$nulls":12},"DASHBOARD"]
[]
[]
[]
[null,null,{"$f":"CHOOSE(NumeroMese,\"Gennaio\",\"Febbraio\",\"Marzo\",\"Aprile\",\"Maggio\",\"Giugno\",\"Luglio\",\"Agosto\",\"Settembre\",\"Ottobre\",\"Novembre\",\"Dicembre\")","v":"Agosto"},null,8,{"$nulls":5},2012]
[]
[]
[null,null,"TOTALI MESE","Totali mensili",{"$nulls":5},"TOTALI ANNUALI",null,"Totali annuali"]
[null,null,"REDDITO","Spese",{"$f":"SUMIF(Spese[DATA],\"<=\"&DataFineMese,Spese[IMPORTO])-SUMIF(Spese[DATA],\"<\"&DataInizioMese,Spese[IMPORTO])","v":{"v":0,"d":"€ 0"}},{"$nulls":4},"REDDITO",null,"Spese",{"$f":"SUM(IF(YEAR(Spese[DATA])=K6,Spese[IMPORTO]))","v":{"v":10242,"d":"€ 10,242"}}]
[null,null,"SPESE","Redditi",{"$f":"SUMIF(Incassi[DATA],\"<=\"&DataFineMese,Incassi[IMPORTO])-SUMIF(Incassi[DATA],\"<\"&DataInizioMese,Incassi[IMPORTO])","v":{"v":0,"d":"€ 0"}},{"$nulls":4},"SPESE",null,"Redditi",{"$f":"SUM(IF(YEAR(Incassi[DATA])=K6,Incassi[IMPORTO]))","v":{"v":12700,"d":"€ 12,700"}}]
[]
[]
[]
[]
[]
[{"$nulls":3},"GENNAIO","FEBBRAIO","MARZO","APRILE","MAGGIO","GIUGNO","LUGLIO","AGOSTO","SETTEMBRE","OTTOBRE","NOVEMBRE","DICEMBRE"]
[null,null,"Redditi 1-15",{"$f":"SUMIFS(Incassi[IMPORTO],Incassi[DESCRIZIONE],\"<=\"&DtMetà,Incassi[DESCRIZIONE],\">=\"&DtInizio)","v":{"v":0,"d":"€ 0.00"}},{"$f":"SUMIFS(Incassi[IMPORTO],Incassi[DESCRIZIONE],\"<=\"&DtMetà,Incassi[DESCRIZIONE],\">=\"&DtInizio)","v":{"v":0,"d":"€ 0.00"}},{"$f":"SUMIFS(Incassi[IMPORTO],Incassi[DESCRIZIONE],\"<=\"&DtMetà,Incassi[DESCRIZIONE],\">=\"&DtInizio)","v":{"v":0,"d":"€ 0.00"}},{"$f":"SUMIFS(Incassi[IMPORTO],Incassi[DESCRIZIONE],\"<=\"&DtMetà,Incassi[DESCRIZIONE],\">=\"&DtInizio)","v":{"v":0,"d":"€ 0.00"}},{"$f":"SUMIFS(Incassi[IMPORTO],Incassi[DESCRIZIONE],\"<=\"&DtMetà,Incassi[DESCRIZIONE],\">=\"&DtInizio)","v":{"v":0,"d":"€ 0.00"}},{"$f":"SUMIFS(Incassi[IMPORTO],Incassi[DESCRIZIONE],\"<=\"&DtMetà,Incassi[DESCRIZIONE],\">=\"&DtInizio)","v":{"v":0,"d":"€ 0.00"}},{"$f":"SUMIFS(Incassi[IMPORTO],Incassi[DESCRIZIONE],\"<=\"&DtMetà,Incassi[DESCRIZIONE],\">=\"&DtInizio)","v":{"v":0,"d":"€ 0.00"}},{"$f":"SUMIFS(Incassi[IMPORTO],Incassi[DESCRIZIONE],\"<=\"&DtMetà,Incassi[DESCRIZIONE],\">=\"&DtInizio)","v":{"v":0,"d":"€ 0.00"}},{"$f":"SUMIFS(Incassi[IMPORTO],Incassi[DESCRIZIONE],\"<=\"&DtMetà,Incassi[DESCRIZIONE],\">=\"&DtInizio)","v":{"v":0,"d":"€ 0.00"}},{"$f":"SUMIFS(Incassi[IMPORTO],Incassi[DESCRIZIONE],\"<=\"&DtMetà,Incassi[DESCRIZIONE],\">=\"&DtInizio)","v":{"v":0,"d":"€ 0.00"}},{"$f":"SUMIFS(Incassi[IMPORTO],Incassi[DESCRIZIONE],\"<=\"&DtMetà,Incassi[DESCRIZIONE],\">=\"&DtInizio)","v":{"v":0,"d":"€ 0.00"}},{"$f":"SUMIFS(Incassi[IMPORTO],Incassi[DESCRIZIONE],\"<=\"&DtMetà,Incassi[DESCRIZIONE],\">=\"&DtInizio)","v":{"v":0,"d":"€ 0.00"}}]
[null,null,"Redditi 16-fine mese",{"$f":"SUMIFS(Incassi[IMPORTO],Incassi[DESCRIZIONE],\"<=\"&DtFine,Incassi[DESCRIZIONE],\">=\"&DtMetà+1)","v":{"v":0,"d":"€ 0.00"}},{"$f":"SUMIFS(Incassi[IMPORTO],Incassi[DESCRIZIONE],\"<=\"&DtFine,Incassi[DESCRIZIONE],\">=\"&DtMetà+1)","v":{"v":0,"d":"€ 0.00"}},{"$f":"SUMIFS(Incassi[IMPORTO],Incassi[DESCRIZIONE],\"<=\"&DtFine,Incassi[DESCRIZIONE],\">=\"&DtMetà+1)","v":{"v":0,"d":"€ 0.00"}},{"$f":"SUMIFS(Incassi[IMPORTO],Incassi[DESCRIZIONE],\"<=\"&DtFine,Incassi[DESCRIZIONE],\">=\"&DtMetà+1)","v":{"v":0,"d":"€ 0.00"}},{"$f":"SUMIFS(Incassi[IMPORTO],Incassi[DESCRIZIONE],\"<=\"&DtFine,Incassi[DESCRIZIONE],\">=\"&DtMetà+1)","v":{"v":0,"d":"€ 0.00"}},{"$f":"SUMIFS(Incassi[IMPORTO],Incassi[DESCRIZIONE],\"<=\"&DtFine,Incassi[DESCRIZIONE],\">=\"&DtMetà+1)","v":{"v":0,"d":"€ 0.00"}},{"$f":"SUMIFS(Incassi[IMPORTO],Incassi[DESCRIZIONE],\"<=\"&DtFine,Incassi[DESCRIZIONE],\">=\"&DtMetà+1)","v":{"v":0,"d":"€ 0.00"}},{"$f":"SUMIFS(Incassi[IMPORTO],Incassi[DESCRIZIONE],\"<=\"&DtFine,Incassi[DESCRIZIONE],\">=\"&DtMetà+1)","v":{"v":0,"d":"€ 0.00"}},{"$f":"SUMIFS(Incassi[IMPORTO],Incassi[DESCRIZIONE],\"<=\"&DtFine,Incassi[DESCRIZIONE],\">=\"&DtMetà+1)","v":{"v":0,"d":"€ 0.00"}},{"$f":"SUMIFS(Incassi[IMPORTO],Incassi[DESCRIZIONE],\"<=\"&DtFine,Incassi[DESCRIZIONE],\">=\"&DtMetà+1)","v":{"v":0,"d":"€ 0.00"}},{"$f":"SUMIFS(Incassi[IMPORTO],Incassi[DESCRIZIONE],\"<=\"&DtFine,Incassi[DESCRIZIONE],\">=\"&DtMetà+1)","v":{"v":0,"d":"€ 0.00"}},{"$f":"SUMIFS(Incassi[IMPORTO],Incassi[DESCRIZIONE],\"<=\"&DtFine,Incassi[DESCRIZIONE],\">=\"&DtMetà+1)","v":{"v":0,"d":"€ 0.00"}}]
[null,null,"Spese 1-15",{"$f":"SUMIFS(Spese[IMPORTO],Spese[DATA],\"<=\"&DtMetà,Spese[DATA],\">=\"&DtInizio)","v":{"v":0,"d":"€ 0.00"}},{"$f":"SUMIFS(Spese[IMPORTO],Spese[DATA],\"<=\"&DtFine,Spese[DATA],\">=\"&DtInizio)","v":{"v":0,"d":"€ 0.00"}},{"$f":"SUMIFS(Spese[IMPORTO],Spese[DATA],\"<=\"&DtFine,Spese[DATA],\">=\"&DtInizio)","v":{"v":0,"d":"€ 0.00"}},{"$f":"SUMIFS(Spese[IMPORTO],Spese[DATA],\"<=\"&DtFine,Spese[DATA],\">=\"&DtInizio)","v":{"v":0,"d":"€ 0.00"}},{"$f":"SUMIFS(Spese[IMPORTO],Spese[DATA],\"<=\"&DtFine,Spese[DATA],\">=\"&DtInizio)","v":{"v":0,"d":"€ 0.00"}},{"$f":"SUMIFS(Spese[IMPORTO],Spese[DATA],\"<=\"&DtFine,Spese[DATA],\">=\"&DtInizio)","v":{"v":0,"d":"€ 0.00"}},{"$f":"SUMIFS(Spese[IMPORTO],Spese[DATA],\"<=\"&DtFine,Spese[DATA],\">=\"&DtInizio)","v":{"v":0,"d":"€ 0.00"}},{"$f":"SUMIFS(Spese[IMPORTO],Spese[DATA],\"<=\"&DtFine,Spese[DATA],\">=\"&DtInizio)","v":{"v":0,"d":"€ 0.00"}},{"$f":"SUMIFS(Spese[IMPORTO],Spese[DATA],\"<=\"&DtFine,Spese[DATA],\">=\"&DtInizio)","v":{"v":1350,"d":"€ 1,350.00"}},{"$f":"SUMIFS(Spese[IMPORTO],Spese[DATA],\"<=\"&DtFine,Spese[DATA],\">=\"&DtInizio)","v":{"v":6025,"d":"€ 6,025.00"}},{"$f":"SUMIFS(Spese[IMPORTO],Spese[DATA],\"<=\"&DtFine,Spese[DATA],\">=\"&DtInizio)","v":{"v":2792,"d":"€ 2,792.00"}},{"$f":"SUMIFS(Spese[IMPORTO],Spese[DATA],\"<=\"&DtFine,Spese[DATA],\">=\"&DtInizio)","v":{"v":0,"d":"€ 0.00"}}]
[null,null,"Spese 16-fine mese",{"$f":"SUMIFS(Spese[IMPORTO],Spese[DATA],\"<=\"&DtFine,Spese[DATA],\">=\"&DtMetà+1)","v":{"v":0,"d":"€ 0.00"}},{"$f":"SUMIFS(Spese[IMPORTO],Spese[DATA],\"<=\"&DtFine,Spese[DATA],\">=\"&DtMetà+1)","v":{"v":0,"d":"€ 0.00"}},{"$f":"SUMIFS(Spese[IMPORTO],Spese[DATA],\"<=\"&DtFine,Spese[DATA],\">=\"&DtMetà+1)","v":{"v":0,"d":"€ 0.00"}},{"$f":"SUMIFS(Spese[IMPORTO],Spese[DATA],\"<=\"&DtFine,Spese[DATA],\">=\"&DtMetà+1)","v":{"v":0,"d":"€ 0.00"}},{"$f":"SUMIFS(Spese[IMPORTO],Spese[DATA],\"<=\"&DtFine,Spese[DATA],\">=\"&DtMetà+1)","v":{"v":0,"d":"€ 0.00"}},{"$f":"SUMIFS(Spese[IMPORTO],Spese[DATA],\"<=\"&DtFine,Spese[DATA],\">=\"&DtMetà+1)","v":{"v":0,"d":"€ 0.00"}},{"$f":"SUMIFS(Spese[IMPORTO],Spese[DATA],\"<=\"&DtFine,Spese[DATA],\">=\"&DtMetà+1)","v":{"v":0,"d":"€ 0.00"}},{"$f":"SUMIFS(Spese[IMPORTO],Spese[DATA],\"<=\"&DtFine,Spese[DATA],\">=\"&DtMetà+1)","v":{"v":0,"d":"€ 0.00"}},{"$f":"SUMIFS(Spese[IMPORTO],Spese[DATA],\"<=\"&DtFine,Spese[DATA],\">=\"&DtMetà+1)","v":{"v":200,"d":"€ 200.00"}},{"$f":"SUMIFS(Spese[IMPORTO],Spese[DATA],\"<=\"&DtFine,Spese[DATA],\">=\"&DtMetà+1)","v":{"v":875,"d":"€ 875.00"}},{"$f":"SUMIFS(Spese[IMPORTO],Spese[DATA],\"<=\"&DtFine,Spese[DATA],\">=\"&DtMetà+1)","v":{"v":0,"d":"€ 0.00"}},{"$f":"SUMIFS(Spese[IMPORTO],Spese[DATA],\"<=\"&DtFine,Spese[DATA],\">=\"&DtMetà+1)","v":{"v":0,"d":"€ 0.00"}}]

{"sheet":"Spese e incassi","index":1,"n_rows":40,"n_cols":10,"rows_kept":40}
[]
[null,null,"Budget domestico quindicinale",{"$nulls":6},"REDDITI & SPESE"]
[]
[]
[]
[null,null,"REDDITO",{"$nulls":3},"SPESE"]
[]
[null,null,"DATA","DESCRIZIONE","IMPORTO",null,"DATA","CATEGORIA","DESCRIZIONE","IMPORTO"]
[null,null,{"$f":"NOW()-14","v":"2012-12-03T19:22:50.730"},"Busta paga Davide",{"v":1300,"d":"€ 1,300.00"},null,{"$f":"NOW()-7","v":"2012-12-10T19:22:50.730"},"Famiglia","Ipoteca",{"v":1000,"d":"€ 1,000.00"}]
[null,null,{"$f":"NOW()-14","v":"2012-12-03T19:22:50.730"},"Busta paga Patrizia",{"v":1300,"d":"€ 1,300.00"},null,{"$f":"NOW()-7","v":"2012-12-10T19:22:50.730"},"Famiglia","Elettricità",{"v":100,"d":"€ 100.00"}]
[null,null,{"$f":"NOW()-28","v":"2012-11-19T19:22:50.730"},"Busta paga Davide",{"v":1500,"d":"€ 1,500.00"},null,"2012-12-10T19:22:50.730","Famiglia","Acqua/fognatura",{"v":50,"d":"€ 50.00"}]
[null,null,"2012-11-19T19:22:50.730","Busta paga Patrizia",{"v":1600,"d":"€ 1,600.00"},null,"2012-12-10T19:22:50.730","Famiglia","Spazzatura",{"v":25,"d":"€ 25.00"}]
[null,null,{"$f":"NOW()-42","v":"2012-11-05T19:22:50.730"},"Busta paga Davide",{"v":1300,"d":"€ 1,300.00"},null,"2012-12-10T19:22:50.730","Famiglia","Cellulare",{"v":100,"d":"€ 100.00"}]
[null,null,"2012-11-05T19:22:50.730","Busta paga Patrizia",{"v":1300,"d":"€ 1,300.00"},null,"2012-12-10T19:22:50.730","Famiglia","Telefono abitazione",{"v":30,"d":"€ 30.00"}]
[null,null,{"$f":"NOW()-56","v":"2012-10-22T19:22:50.730"},"Busta paga Davide",{"v":1500,"d":"€ 1,500.00"},null,"2012-12-10T19:22:50.730","Famiglia","Internet",{"v":50,"d":"€ 50.00"}]
[null,null,"2012-10-22T19:22:50.730","Busta paga Patrizia",{"v":1600,"d":"€ 1,600.00"},null,"2012-12-10T19:22:50.730","Famiglia","Televisione",{"v":50,"d":"€ 50.00"}]
[null,null,{"$f":"NOW()-70","v":"2012-10-08T19:22:50.730"},"Busta paga Davide",{"v":1300,"d":"€ 1,300.00"},null,"2012-12-10T19:22:50.730","Famiglia","Manutenzione/riparazioni",{"v":25,"d":"€ 25.00"}]
[{"$nulls":6},{"$f":"NOW()-8","v":"2012-12-09T19:22:50.730"},"Famiglia","Carta di credito 1 ",{"v":100,"d":"€ 100.00"}]
[{"$nulls":6},{"$f":"NOW()-9","v":"2012-12-08T19:22:50.730"},"Divertimento","Film",{"v":37,"d":"€ 37.00"}]
[{"$nulls":6},{"$f":"NOW()-10","v":"2012-12-07T19:22:50.730"},"Cibo","Generi alimentari",{"v":350,"d":"€ 350.00"}]
[{"$nulls":6},{"$f":"NOW()-11","v":"2012-12-06T19:22:50.730"},"Cibo","Ristorante",{"v":75,"d":"€ 75.00"}]
[{"$nulls":6},{"$f":"NOW()-12","v":"2012-12-05T19:22:50.730"},"Bambini","Retta pranzo",{"v":150,"d":"€ 150.00"}]
[{"$nulls":6},{"$f":"NOW()-13","v":"2012-12-04T19:22:50.730"},"Conti d'investimento","Risparmi",{"v":250,"d":"€ 250.00"}]
[{"$nulls":6},{"$f":"NOW()-14","v":"2012-12-03T19:22:50.730"},"Conti d'investimento","Conto d'investimento",{"v":250,"d":"€ 250.00"}]
[{"$nulls":6},{"$f":"NOW()-15","v":"2012-12-02T19:22:50.730"},"Personale","Palestra/centro fitness",{"v":100,"d":"€ 100.00"}]
[{"$nulls":6},{"$f":"NOW()-16","v":"2012-12-01T19:22:50.730"},"Animali domestici","Cibo",{"v":50,"d":"€ 50.00"}]
[{"$nulls":6},{"$f":"NOW()-20","v":"2012-11-27T19:22:50.730"},"Animali domestici","Cura della persona",{"v":50,"d":"€ 50.00"}]
[{"$nulls":6},{"$f":"NOW()-20","v":"2012-11-27T19:22:50.730"},"Animali domestici","Altro",{"v":50,"d":"€ 50.00"}]
[{"$nulls":6},{"$f":"NOW()-25","v":"2012-11-22T19:22:50.730"},"Trasporto","Pagamento auto 1 ",{"v":300,"d":"€ 300.00"}]
[{"$nulls":6},{"$f":"NOW()-25","v":"2012-11-22T19:22:50.730"},"Trasporto","Pagamento auto 2 ",{"v":350,"d":"€ 350.00"}]
[{"$nulls":6},{"$f":"NOW()-25","v":"2012-11-22T19:22:50.730"},"Trasporto","Assicurazione auto",{"v":50,"d":"€ 50.00"}]
[{"$nulls":6},{"$f":"NOW()-30","v":"2012-11-17T19:22:50.730"},"Trasporto","Carburante",{"v":50,"d":"€ 50.00"}]
[{"$nulls":6},{"$f":"NOW()-31","v":"2012-11-16T19:22:50.730"},"Trasporto","Carburante",{"v":25,"d":"€ 25.00"}]
[{"$nulls":6},{"$f":"NOW()-42","v":"2012-11-05T19:22:50.730"},"Trasporto","Manutenzione/riparazioni",{"v":150,"d":"€ 150.00"}]
[{"$nulls":6},{"$f":"NOW()-45","v":"2012-11-02T19:22:50.730"},"Famiglia","Ipoteca",{"v":5000,"d":"€ 5,000.00"}]
[{"$nulls":6},{"$f":"NOW()-50","v":"2012-10-28T19:22:50.730"},"Famiglia","Approvvigionamenti",{"v":200,"d":"€ 200.00"}]
[{"$nulls":6},{"$f":"NOW()-65","v":"2012-10-13T19:22:50.730"},"Famiglia","Telefono abitazione",{"v":100,"d":"€ 100.00"}]
[{"$nulls":6},{"$f":"NOW()-70","v":"2012-10-08T19:22:50.730"},"Famiglia","Spazzatura",{"v":50,"d":"€ 50.00"}]
[{"$nulls":6},{"$f":"NOW()-75","v":"2012-10-03T19:22:50.730"},"Famiglia","Ipoteca",{"v":1000,"d":"€ 1,000.00"}]
[{"$nulls":6},{"$f":"NOW()-78","v":"2012-09-30T19:22:50.730"},"Divertimento","Film",{"v":75,"d":"€ 75.00"}]

{"sheet":"Report preventivo","index":2,"n_rows":41,"n_cols":8,"rows_kept":41}
[]
[null,null,"Budget domestico quindicinale",{"$nulls":4},"RAPPORTO SUL BUDGET"]
{"$rows_empty":10}
[null,null,"SPESE",null,null,"TOTALI CATEGORIE"]
[]
[null,null,"DESCRIZIONE","TOTALI"]
[null,null,"Acqua/fognatura",{"v":50,"d":"€ 50"}]
[null,null,"Altro",{"v":50,"d":"€ 50"}]
[null,null,"Approvvigionamenti",{"v":200,"d":"€ 200"}]
[null,null,"Assicurazione auto",{"v":50,"d":"€ 50"}]
[null,null,"Carburante",{"v":75,"d":"€ 75"}]
[null,null,"Carta di credito 1 ",{"v":100,"d":"€ 100"}]
[null,null,"Cellulare",{"v":100,"d":"€ 100"}]
[null,null,"Cibo",{"v":50,"d":"€ 50"}]
[null,null,"Conto d'investimento",{"v":250,"d":"€ 250"}]
[null,null,"Cura della persona",{"v":50,"d":"€ 50"}]
[null,null,"Elettricità",{"v":100,"d":"€ 100"}]
[null,null,"Film",{"v":112,"d":"€ 112"}]
[null,null,"Generi alimentari",{"v":350,"d":"€ 350"}]
[null,null,"Internet",{"v":50,"d":"€ 50"}]
[null,null,"Ipoteca",{"v":7000,"d":"€ 7,000"}]
[null,null,"Manutenzione/riparazioni",{"v":175,"d":"€ 175"}]
[null,null,"Pagamento auto 1 ",{"v":300,"d":"€ 300"}]
[null,null,"Pagamento auto 2 ",{"v":350,"d":"€ 350"}]
[null,null,"Palestra/centro fitness",{"v":100,"d":"€ 100"}]
[null,null,"Retta pranzo",{"v":150,"d":"€ 150"}]
[null,null,"Risparmi",{"v":250,"d":"€ 250"}]
[null,null,"Ristorante",{"v":75,"d":"€ 75"}]
[null,null,"Spazzatura",{"v":75,"d":"€ 75"}]
[null,null,"Telefono abitazione",{"v":130,"d":"€ 130"}]
[null,null,"Televisione",{"v":50,"d":"€ 50"}]
[null,null,"TOTALI",{"v":10242,"d":"€ 10,242"}]

{"sheet":"Elenchi dati","index":3,"n_rows":20,"n_cols":14,"rows_kept":20}
[]
[null,null,"Budget domestico quindicinale",{"$nulls":10},"ELENCHI DATI"]
[]
[]
[null,null,"IMPOSTAZIONE         I dati sottostanti relativi alle categorie popolano gli elenchi a discesa nella tabella Spese del foglio Spese & redditi. Modificare i nomi delle categorie o le descrizioni sotto ogni categoria per aggiornare gli elenchi."]
[]
[null,null,"Famiglia","Divertimento","Cibo","Regali/donazioni","Bambini","Conti d'investimento","Spese mediche","Altro","Personale","Animali domestici","Tasse/spese legali","Trasporto"]
[null,null,"Ipoteca","Film","Generi alimentari","Beneficienza 1","Abbigliamento","Conto pensione individuale","Medico/clinica","Altro","Abbigliamento","Cibo","Regionali","Pagamento auto 1 "]
[null,null,"Elettricità","Video/film","Ristorante","Beneficienza 2","Giochi/giocattoli","Risparmi","Assicurazione","Quote sociali","Parrucchiere/manicure","Approvvigionamenti","Statali","Pagamento auto 2 "]
[null,null,"Acqua/fognatura","Musica",null,"Beneficienza 3","Retta pranzo","Conto corrente",null,null,"Lavanderia a secco","Spese mediche","Locali","Assicurazione auto"]
[null,null,"Spazzatura","Concerti/teatro",null,"Regali","Quote/tasse","Pensionamento",null,null,"Palestra/centro fitness","Cura della persona","Altro","Immatricolazione/circolazione"]
[null,null,"Cellulare","Eventi sportivi",null,null,"Forniture scolastiche","Conto d'investimento",null,null,"Acquisti","Altro","Avvocato","Carburante"]
[null,null,"Telefono abitazione","Altro",null,null,"Altro","Università",null,null,"Altro",null,"Assistenza bambini","Manutenzione/riparazioni"]
[null,null,"Internet",{"$nulls":3},"Lavanderia","Prestiti",{"$nulls":4},"Alimenti","Trasporto pubblico"]
[null,null,"Televisione",{"$nulls":4},"Prestiti studenteschi",{"$nulls":4},"Altro"]
[null,null,"Manutenzione/riparazioni"]
[null,null,"Approvvigionamenti"]
[null,null,"Via cavo/Internet/telefono"]
[null,null,"Carta di credito 1 "]
[null,null,"Carta di credito 2 "]

{"sheet":"Tabella pivot Categoria","index":4,"n_rows":16,"n_cols":14,"rows_kept":16,"hidden":true}
[]
[null,null,"Budget domestico quindicinale",{"$nulls":10},"TABELLA PIVOT DELLE CATEGORIE"]
[]
[]
[null,"Questa tabella pivot costituisce l'origine dati per il grafico pivot dei totali delle categorie nel rapporto relativo al budget. "]
[]
[null,null,"Row Labels","IMPORTO "]
[null,null,"Animali domestici",{"v":150,"d":"€ 150"}]
[null,null,"Bambini",{"v":150,"d":"€ 150"}]
[null,null,"Cibo",{"v":425,"d":"€ 425"}]
[null,null,"Conti d'investimento",{"v":500,"d":"€ 500"}]
[null,null,"Divertimento",{"v":112,"d":"€ 112"}]
[null,null,"Famiglia",{"v":7880,"d":"€ 7,880"}]
[null,null,"Personale",{"v":100,"d":"€ 100"}]
[null,null,"Trasporto",{"v":925,"d":"€ 925"}]
[null,null,"Grand Total",{"v":10242,"d":"€ 10,242"}]